fUSD/lending_fUSD_20260319
["ID","MTS","AMOUNT","RATE_DAILY","PERIOD"]
[408569443,1773897032820,-105108.63744334,0.00010551,2]
[408569444,1773897032836,-2113.6046225,0.00010551,2]
[408569445,1773897032856,-1258.9,0.00010551,2]
[408569446,1773897032868,-592.07886631,0.00010551,2]
[408569447,1773897032882,-636.65095903,0.00010551,2]
[408569448,1773897032892,-2592.43037709,0.00010551,2]
[408569449,1773897032903,-12372.53301727,0.00010551,2]
[408569450,1773897032923,-250.0,0.00010551,2]
[408569451,1773897032934,-351.21058763,0.00010551,2]
[408569452,1773897032946,-940.38306014,0.00010551,2]
[408569453,1773897032958,-3031.8631592,0.00010551,2]
[408569454,1773897032970,-856.08682692,0.00010551,2]
[408569459,1773897037361,-488.41431202,0.00010551,2]
[408569460,1773897037539,-840185.3397884,0.00010551,2]
[408569461,1773897037549,-444286.83815841,0.00010551,2]
[408569462,1773897037640,-221711.44524381,0.00010551,2]
[408569463,1773897037651,-435061.35528933,0.00010551,2]
[408569464,1773897037662,-436.75223375,0.00010551,2]
[408569479,1773897039531,-1398503.6090747,0.00010551,2]
[408569481,1773897039541,-500.0,0.00010573,2]
[408569483,1773897039551,-500.0,0.00010573,2]
[408569485,1773897039560,-500.0,0.00010573,2]
[408569486,1773897039569,-333.74740353,0.00010573,2]
[408569487,1773897039579,-2500.0,0.00010644,2]
[408569488,1773897039588,-1000.0,0.0001065,2]
[408569489,1773897039597,-1000.0,0.0001065,2]
[408569490,1773897039607,-250.0,0.0001065,2]
[408569491,1773897039616,-253.55651067,0.00010651,2]
[408569492,1773897039626,-95587.48975956,0.00010651,2]
[408569493,1773897039635,-500.0,0.000107,2]
[408569494,1773897039645,-3572.0,0.00010712,2]
[408569495,1773897039654,-343.0,0.00010712,2]
[408569496,1773897039664,-1568.45,0.00010741,2]
[408569497,1773897039673,-430.84,0.00010741,2]
[408569498,1773897039682,-9999.99,0.00010741,2]
[408569499,1773897039692,-150.99,0.00010741,2]
[408569500,1773897039701,-9999.99,0.00010741,2]
[408569501,1773897039710,-160.99,0.00010744,2]
[408569502,1773897039719,-10379.68,0.00010744,2]
[408569503,1773897039728,-937.41,0.00010744,2]
[408569504,1773897039737,-150.99,0.00010744,2]
[408569505,1773897039746,-9999.99,0.00010744,2]
[408569506,1773897039756,-9999.99,0.00010744,2]
[408569507,1773897039766,-58570.03,0.00010744,2]
[408569508,1773897039775,-999.99,0.00010744,2]
[408569509,1773897039784,-299.99,0.00010744,2]
[408569510,1773897039794,-200.0,0.00010744,2]
[408569511,1773897039804,-151.0,0.00010748,2]
[408569512,1773897039813,-4423.559,0.0001075,2]
[408569513,1773897039823,-211.808,0.0001075,2]
[408569514,1773897039832,-32974.6857,0.00010751,2]
[408569515,1773897039841,-1000.0,0.00010751,2]
[408569516,1773897039851,-10147.82137612,0.00010751,2]
[408569517,1773897039860,-942.35170164,0.00010751,2]
[408569518,1773897039869,-1046.8329771,0.00010751,2]
[408569519,1773897039881,-1209.24616255,0.00010751,2]
[408569520,1773897039891,-258.80200783,0.00010751,2]
[408569521,1773897039900,-500.0,0.00010773,2]
[408569522,1773897039909,-501.23260465,0.00010773,2]
[408569523,1773897039920,-300.07852867,0.00010773,2]
[408569524,1773897039929,-500.0,0.00010773,2]
[408569525,1773897039938,-502.03324313,0.00010773,2]
[408569526,1773897039948,-500.0,0.00010773,2]
[408569527,1773897039957,-313.87862379,0.00010773,2]
[408569528,1773897039967,-500.70249229,0.00010773,2]
[408569529,1773897039976,-500.0,0.00010773,2]
[408569530,1773897039985,-501.83365721,0.00010773,2]
[408569531,1773897039994,-500.0,0.00010773,2]
[408569532,1773897040003,-112468.4475219,0.00010787,2]
[408569533,1773897040013,-225.0,0.00010791,2]
[408569534,1773897040023,-500.0,0.00010824,2]
[408569535,1773897040032,-663.0,0.00010858,2]
[408569536,1773897040042,-577.0,0.00010918,2]
[408569537,1773897040051,-163.0,0.00010949,2]
[408569538,1773897040061,-150.0,0.00010959,2]
[408569539,1773897040070,-500.0,0.00010959,2]
[408569542,1773897040080,-500.0,0.00010959,2]
[408569543,1773897040089,-602.96617289,0.00010959,2]
[408569545,1773897040098,-1138.0,0.00011005,2]
[408569546,1773897040108,-337.52687637,0.00011041,2]
[408569547,1773897040117,-500.0,0.0001105,2]
[408569548,1773897040127,-306.69216472,0.0001105,5]
[408569549,1773897040136,-500.0,0.0001105,6]
[408569550,1773897040145,-500.0,0.0001105,7]
[408569551,1773897040155,-500.0,0.0001105,8]
[408569552,1773897040164,-500.0,0.0001105,9]
[408569553,1773897040173,-310.0,0.0001105,3]
[408569554,1773897040183,-177.0,0.0001105,3]
[408569555,1773897040192,-158.0,0.0001105,3]
[408569556,1773897040201,-770.93590881,0.00011088,2]
[408569557,1773897040212,-2063.24968851,0.00011088,2]
[408569558,1773897040221,-1889.03893771,0.00011088,2]
[408569559,1773897040231,-1846.1840481,0.00011088,2]
[408569560,1773897040241,-1714.82818698,0.00011088,2]
[408569561,1773897040250,-500.0,0.00011098,2]
[408569562,1773897040260,-14159.85799942,0.00011099,2]
[408569563,1773897040270,-14159.85799938,0.00011099,2]
[408569564,1773897040280,-14159.85799938,0.00011099,2]
[408569565,1773897040289,-22381.23331002,0.00011099,2]
[408569566,1773897040299,-22381.23330996,0.00011099,2]
[408569567,1773897040309,-1012.51857515,0.00011121,2]
[408569568,1773897040318,-1000.0,0.00011121,2]
[408569569,1773897040327,-1000.0,0.00011121,2]
[408569570,1773897040337,-200.0,0.00011292,2]
[408569571,1773897040346,-22381.23330996,0.00011312,2]
[408569572,1773897040355,-14159.85799938,0.00011316,2]
[408569573,1773897040365,-375.44189071,0.00011321,2]
[408569574,1773897040374,-1000.0,0.00011321,2]
[408569575,1773897040384,-1015.36070875,0.00011321,2]
[408569576,1773897040393,-500.82846399,0.00011321,2]
[408569577,1773897040403,-1000.0,0.00011321,2]
[408569578,1773897040412,-500.0,0.00011372,2]
[408569579,1773897040421,-158222.8276026,0.00011458,2]
[408569580,1773897040431,-3119.3209656,0.00011458,2]
[408569581,1773897040441,-380.14500491,0.00011526,2]
[408569582,1773897040450,-255.0,0.00011573,2]
[408569583,1773897040460,-420.0,0.00011597,2]
[408569584,1773897040469,-420.0,0.00011599,2]
[408569585,1773897040478,-1680.0,0.00011604,2]
[408569586,1773897040487,-14159.85799938,0.00011605,2]
[408569587,1773897040496,-22381.23330996,0.00011643,2]
[408569588,1773897040505,-500.0,0.00011646,2]
[408569589,1773897040515,-742.14675878,0.00011668,2]
[408569590,1773897040524,-1500.0,0.00011668,2]
[408569591,1773897040533,-193.0,0.00011715,2]
[408569592,1773897040543,-300.0,0.00011715,2]
[408569593,1773897040553,-300.0,0.00011715,2]
[408569594,1773897040562,-300.0,0.00011715,2]
[408569595,1773897040571,-300.0,0.00011715,2]
[408569596,1773897040581,-305.44181081,0.00011715,2]
[408569597,1773897040590,-250.0,0.00011715,2]
[408569598,1773897040599,-5000.0,0.00011716,2]
[408569599,1773897040608,-5000.0,0.00011716,2]
[408569600,1773897040618,-5000.0,0.00011716,2]
[408569601,1773897040627,-5000.0,0.00011716,2]
[408569602,1773897040637,-5000.0,0.00011716,2]
[408569603,1773897040647,-281.42,0.00011743,2]
[408569604,1773897040657,-200.0,0.0001184,2]
[408569605,1773897040666,-466.77,0.00011856,2]
[408569606,1773897040675,-1500.0,0.00011868,2]
[408569607,1773897040685,-1500.0,0.00011868,2]
[408569608,1773897040694,-14159.85799938,0.00011893,2]
[408569609,1773897040707,-172.58,0.00011911,2]
[408569610,1773897040717,-500.0,0.0001192,2]
[408569611,1773897040726,-22381.23330996,0.00011974,2]
[408569612,1773897040737,-310.0,0.00012055,3]
[408569613,1773897040746,-177.0,0.00012055,3]
[408569614,1773897040756,-6493.72,0.00012055,2]
[408569615,1773897040765,-273.487728,0.00012157,2]
[408569616,1773897040774,-14159.85799938,0.00012182,2]
[408569617,1773897040783,-503.4765885,0.00012194,2]
[408569618,1773897040792,-504.04033637,0.00012216,2]
[408569619,1773897040802,-22381.23330996,0.00012304,2]
[408569620,1773897040811,-200.0,0.00012388,2]
[408569621,1773897040820,-380.14500491,0.00012401,2]
[408569622,1773897040829,-2000.0,0.00012416,2]
[408569623,1773897040838,-2000.0,0.00012416,2]
[408569624,1773897040848,-22381.23330996,0.00012635,2]
[408569625,1773897040858,-433.0,0.00012692,2]
[408569626,1773897040868,-587.0,0.0001275,2]
[408569627,1773897040880,-587.0,0.00012751,2]
[408569628,1773897040891,-2351.0,0.00012764,2]
[408569629,1773897040901,-458.052769,0.00012884,2]
[408569630,1773897040910,-217.023948,0.00012884,2]
[408569631,1773897040920,-258.234582,0.00012884,2]
[408569632,1773897040930,-267.646457,0.00012884,2]
[408569633,1773897040939,-186.070087,0.00012884,2]
[408569634,1773897040950,-192.632041,0.00012936,2]
[408569635,1773897040959,-200.0,0.00012936,2]
[408569636,1773897040968,-2500.0,0.00012964,2]
[408569637,1773897040978,-2500.0,0.00012964,2]
[408569638,1773897040987,-22381.23330996,0.00012966,2]
[408569639,1773897040997,-35304.2848621,0.00012968,2]
[408569640,1773897041007,-310.0,0.00013059,3]
[408569641,1773897041017,-177.0,0.00013059,3]
[408569642,1773897041026,-500.0,0.00013144,2]
[408569643,1773897041036,-500.0,0.00013144,2]
[408569645,1773897041045,-500.0,0.00013144,2]
[408569646,1773897041055,-500.0,0.00013144,2]
[408569647,1773897041065,-500.0,0.00013144,2]
[408569648,1773897041075,-419.56029481,0.00013144,2]
[408569649,1773897041084,-500.0,0.00013147,2]
[408569650,1773897041093,-150.0,0.00013147,2]
[408569651,1773897041103,-500.0,0.00013147,2]
[408569652,1773897041113,-172.33361758,0.00013147,2]
[408569653,1773897041123,-500.0,0.00013147,2]
[408569654,1773897041133,-461.65354003,0.00013147,2]
[408569655,1773897041142,-500.0,0.00013147,2]
[408569656,1773897041152,-150.0,0.00013147,2]
[408569657,1773897041161,-150.0,0.00013147,2]
[408569658,1773897041170,-150.0,0.00013147,2]
[408569659,1773897041180,-150.0,0.00013147,2]
[408569660,1773897041189,-500.0,0.00013147,2]
[408569661,1773897041198,-150.94227271,0.00013147,2]
[408569662,1773897041208,-150.0,0.00013147,2]
[408569663,1773897041217,-190.77647721,0.00013147,2]
[408569664,1773897041226,-239.07414574,0.00013147,2]
[408569665,1773897041235,-500.0,0.00013147,2]
[408569666,1773897041244,-500.0,0.00013147,2]
[408569667,1773897041253,-227.30575448,0.00013147,2]
[408569668,1773897041267,-500.0,0.00013147,2]
[408569669,1773897041276,-500.0,0.00013147,2]
[408569670,1773897041285,-500.0,0.00013147,2]
[408569671,1773897041295,-500.0,0.00013147,2]
[408569672,1773897041304,-500.0,0.00013147,2]
[408569673,1773897041313,-500.0,0.00013147,2]
[408569674,1773897041322,-500.0,0.00013147,2]
[408569675,1773897041332,-500.0,0.00013147,2]
[408569676,1773897041341,-500.0,0.00013147,2]
[408569677,1773897041350,-500.0,0.00013147,2]
[408569678,1773897041360,-500.0,0.00013147,2]
[408569679,1773897041369,-500.0,0.00013147,2]
[408569680,1773897041378,-500.0,0.00013147,2]
[408569681,1773897041387,-500.0,0.00013147,2]
[408569682,1773897041397,-500.0,0.00013147,2]
[408569683,1773897041406,-500.0,0.00013147,2]
[408569684,1773897041415,-500.0,0.00013147,2]
[408569685,1773897041424,-500.0,0.00013147,2]
[408569686,1773897041433,-500.0,0.00013147,2]
[408569687,1773897041442,-500.0,0.00013147,2]
[408569688,1773897041452,-500.0,0.00013147,2]
[408569689,1773897041461,-500.0,0.00013147,2]
[408569690,1773897041470,-500.0,0.00013147,2]
[408569691,1773897041479,-520.81453038,0.00013147,2]
[408569692,1773897041489,-623.58090901,0.00013147,2]
[408569693,1773897041498,-500.0,0.00013147,2]
[408569694,1773897041508,-500.0,0.00013147,2]
[408569695,1773897041518,-214.94352647,0.00013147,2]
[408569696,1773897041527,-500.0,0.00013147,2]
[408569697,1773897041537,-500.0,0.00013147,2]
[408569698,1773897041546,-500.0,0.00013147,2]
[408569699,1773897041556,-500.0,0.00013147,2]
[408569700,1773897041566,-500.0,0.00013147,2]
[408569701,1773897041575,-500.0,0.00013147,2]
[408569702,1773897041584,-500.0,0.00013147,2]
[408569703,1773897041593,-500.0,0.00013147,2]
[408569704,1773897041602,-500.0,0.00013147,2]
[408569705,1773897041611,-500.0,0.00013147,2]
[408569706,1773897041620,-255.16033753,0.00013147,2]
[408569707,1773897041629,-500.0,0.00013147,2]
[408569708,1773897041642,-500.0,0.00013147,2]
[408569709,1773897041651,-500.0,0.00013147,2]
[408569710,1773897041661,-500.0,0.00013147,2]
[408569711,1773897041670,-500.0,0.00013147,2]
[408569712,1773897041680,-500.0,0.00013147,2]
[408569713,1773897041689,-500.0,0.00013147,2]
[408569714,1773897041699,-500.0,0.00013147,2]
[408569715,1773897041709,-500.0,0.00013147,2]
[408569716,1773897041719,-500.0,0.00013147,2]
[408569717,1773897041728,-500.0,0.00013147,2]
[408569718,1773897041738,-500.0,0.00013147,2]
[408569719,1773897041747,-500.0,0.00013147,2]
[408569720,1773897041756,-500.0,0.00013147,2]
[408569721,1773897041767,-500.0,0.00013147,2]
[408569722,1773897041778,-500.0,0.00013147,2]
[408569723,1773897041788,-500.0,0.00013147,2]
[408569724,1773897041798,-364.3001579,0.00013147,2]
[408569725,1773897041808,-500.0,0.00013147,2]
[408569726,1773897041818,-500.0,0.00013147,2]
[408569727,1773897041827,-500.0,0.00013147,2]
[408569728,1773897041837,-500.0,0.00013147,2]
[408569729,1773897041847,-500.0,0.00013147,2]
[408569730,1773897041857,-261.00219026,0.00013147,2]
[408569731,1773897041867,-257.5653502,0.00013147,2]
[408569732,1773897041880,-435.0,0.00013147,2]
[408569733,1773897041890,-435.0,0.00013147,2]
[408569734,1773897041900,-435.0,0.00013147,2]
[408569735,1773897041909,-435.0,0.00013147,2]
[408569736,1773897041919,-435.0,0.00013147,2]
[408569737,1773897041928,-435.0,0.00013147,2]
[408569738,1773897041938,-435.0,0.00013147,2]
[408569739,1773897041948,-435.0,0.00013147,2]
[408569740,1773897041958,-435.0,0.00013147,2]
[408569741,1773897041968,-435.0,0.00013147,2]
[408569742,1773897041977,-435.0,0.00013147,2]
[408569743,1773897041987,-435.0,0.00013147,2]
[408569744,1773897041996,-435.0,0.00013147,2]
[408569745,1773897042006,-435.0,0.00013147,2]
[408569746,1773897042015,-435.0,0.00013147,2]
[408569747,1773897042025,-435.0,0.00013147,2]
[408569748,1773897042038,-435.0,0.00013147,2]
[408569749,1773897042048,-435.0,0.00013147,2]
[408569750,1773897042057,-435.0,0.00013147,2]
[408569751,1773897042068,-435.0,0.00013147,2]
[408569752,1773897042078,-435.0,0.00013147,2]
[408569753,1773897042088,-435.0,0.00013147,2]
[408569754,1773897042097,-435.0,0.00013147,2]
[408569755,1773897042356,-445.0,0.00013147,2]
[408569756,1773897042370,-500.0,0.00013147,2]
[408569757,1773897042380,-500.0,0.00013147,2]
[408569758,1773897042389,-500.0,0.00013147,2]
[408569759,1773897042399,-500.0,0.00013147,2]
[408569760,1773897042409,-500.0,0.00013147,2]
[408569761,1773897042419,-500.0,0.00013147,2]
[408569762,1773897042428,-500.0,0.00013147,2]
[408569763,1773897042437,-500.0,0.00013147,2]
[408569764,1773897042447,-500.0,0.00013147,2]
[408569765,1773897042457,-500.0,0.00013147,2]
[408569766,1773897042467,-622.70708888,0.00013147,2]
[408569767,1773897042478,-154.97068236,0.00013147,2]
[408569768,1773897042488,-500.0,0.00013147,2]
[408569769,1773897042497,-500.0,0.00013147,2]
[408569770,1773897042507,-500.0,0.00013147,2]
[408569771,1773897042517,-510.84159048,0.00013147,2]
[408569772,1773897042527,-1136.0,0.00013147,2]
[408569773,1773897042536,-1136.0,0.00013147,2]
[408569774,1773897042546,-1136.0,0.00013147,2]
[408569775,1773897042556,-1136.0,0.00013147,2]
[408569776,1773897042566,-1136.0,0.00013147,2]
[408569777,1773897042577,-1136.0,0.00013147,2]
[408569778,1773897042586,-1136.0,0.00013147,2]
[408569779,1773897042596,-1136.0,0.00013147,2]
[408569780,1773897042606,-1136.0,0.00013147,2]
[408569781,1773897042616,-1136.0,0.00013147,2]
[408569782,1773897042625,-1136.0,0.00013147,2]
[408569783,1773897042635,-1136.0,0.00013147,2]
[408569784,1773897042644,-1136.0,0.00013147,2]
[408569785,1773897042654,-1136.0,0.00013147,2]
[408569786,1773897042663,-1136.0,0.00013147,2]
[408569787,1773897042673,-1136.0,0.00013147,2]
[408569788,1773897042683,-1136.0,0.00013147,2]
[408569790,1773897042692,-1136.0,0.00013147,2]
[408569791,1773897042701,-1136.0,0.00013147,2]
[408569793,1773897042711,-1136.0,0.00013147,2]
[408569794,1773897042720,-1136.0,0.00013147,2]
[408569795,1773897042731,-1136.0,0.00013147,2]
[408569796,1773897042740,-1136.0,0.00013147,2]
[408569797,1773897042750,-1139.93350754,0.00013147,2]
[408569798,1773897042759,-500.0,0.00013147,2]
[408569799,1773897042769,-500.0,0.00013147,2]
[408569800,1773897042779,-500.0,0.00013147,2]
[408569801,1773897042788,-500.0,0.00013147,2]
[408569802,1773897042798,-500.0,0.00013147,2]
[408569803,1773897042807,-500.0,0.00013147,2]
[408569804,1773897042817,-484.98041623,0.00013147,2]
[408569805,1773897042827,-500.0,0.00013147,2]
[408569806,1773897042836,-500.0,0.00013147,2]
[408569807,1773897042846,-500.0,0.00013147,2]
[408569808,1773897042856,-500.0,0.00013147,2]
[408569809,1773897042865,-500.0,0.00013147,2]
[408569810,1773897042877,-500.0,0.00013147,2]
[408569811,1773897042888,-500.0,0.00013147,2]
[408569812,1773897042897,-150.75759761,0.00013147,2]
[408569813,1773897042907,-500.0,0.00013147,2]
[408569814,1773897042917,-500.0,0.00013147,2]
[408569815,1773897042927,-500.0,0.00013147,2]
[408569816,1773897042937,-500.0,0.00013147,2]
[408569817,1773897042950,-500.0,0.00013147,2]
[408569818,1773897042962,-500.0,0.00013147,2]
[408569820,1773897042971,-500.0,0.00013147,2]
[408569822,1773897042982,-500.0,0.00013147,2]
[408569824,1773897042991,-500.0,0.00013147,2]
[408569825,1773897043000,-500.0,0.00013147,2]
[408569826,1773897043010,-500.0,0.00013147,2]
[408569827,1773897043020,-500.0,0.00013147,2]
[408569828,1773897043030,-500.0,0.00013147,2]
[408569829,1773897043039,-500.0,0.00013147,2]
[408569830,1773897043049,-206.79155437,0.00013147,2]
[408569831,1773897043059,-500.0,0.00013147,2]
[408569832,1773897043068,-500.0,0.00013147,2]
[408569833,1773897043078,-500.0,0.00013147,2]
[408569834,1773897043088,-500.0,0.00013147,2]
[408569835,1773897043098,-500.0,0.00013147,2]
[408569836,1773897043119,-500.0,0.00013147,2]
[408569837,1773897043130,-500.0,0.00013147,2]
[408569838,1773897043140,-500.0,0.00013147,2]
[408569839,1773897043150,-500.0,0.00013147,2]
[408569840,1773897043160,-500.0,0.00013147,2]
[408569841,1773897043169,-500.0,0.00013147,2]
[408569842,1773897043179,-500.0,0.00013147,2]
[408569843,1773897043188,-500.0,0.00013147,2]
[408569844,1773897043198,-500.0,0.00013147,2]
[408569845,1773897043208,-500.0,0.00013147,2]
[408569846,1773897043218,-320.05942927,0.00013147,2]
[408569847,1773897043228,-500.0,0.00013147,2]
[408569848,1773897043237,-500.0,0.00013147,2]
[408569849,1773897043247,-500.0,0.00013147,2]
[408569850,1773897043257,-500.0,0.00013147,2]
[408569851,1773897043267,-500.0,0.00013147,2]
[408569852,1773897043277,-500.0,0.00013147,2]
[408569853,1773897043287,-500.0,0.00013147,2]
[408569854,1773897043297,-451.64334977,0.00013147,2]
[408569855,1773897043307,-238.49988002,0.00013147,2]
[408569856,1773897043316,-150.0,0.00013147,2]
[408569857,1773897043326,-150.0,0.00013147,2]
[408569858,1773897043336,-500.0,0.00013147,2]
[408569859,1773897043346,-500.0,0.00013147,2]
[408569860,1773897043356,-153.65437975,0.00013147,2]
[408569861,1773897043365,-5476.80526807,0.00013161,2]
[408569862,1773897043375,-299.0,0.00013172,2]
[408569863,1773897043385,-409.16107493,0.00013173,2]
[408569864,1773897043395,-1175.98,0.000132,2]
[408569865,1773897043404,-293.99,0.000132,2]
[408569866,1773897043414,-293.99,0.000132,2]
[408569867,1773897043423,-293.99,0.000132,2]
[408569868,1773897043433,-293.99,0.000132,2]
[408569869,1773897043442,-241.25,0.000132,2]
[408569870,1773897043451,-1857.15,0.000132,2]
[408569871,1773897043461,-383.90901614,0.00013222,2]
[408569872,1773897043471,-500.0,0.0001326,2]
[408569873,1773897043480,-380.14500491,0.00013276,2]
[408569874,1773897043490,-22381.23330996,0.00013297,2]
[408569875,1773897043499,-7877.4507352,0.00013305,2]
[408569876,1773897043509,-504.0,0.00013333,2]
[408569877,1773897043518,-5476.80526807,0.00013381,2]
[408569878,1773897043527,-200.0,0.00013484,2]
[408569879,1773897043537,-2500.0,0.00013512,2]
[408569880,1773897043546,-3000.0,0.00013512,2]
[408569881,1773897043555,-5476.80526807,0.000136,2]
[408569882,1773897043565,-1062.0,0.000136,7]
[408569883,1773897043574,-22381.23330996,0.00013628,2]
[408569884,1773897043583,-500.0,0.00013698,2]
[408569885,1773897043592,-500.0,0.00013698,2]
[408569886,1773897043602,-500.0,0.00013698,2]
[408569887,1773897043611,-497.57987952,0.00013698,2]
[408569888,1773897043620,-500.0,0.00013698,2]
[408569889,1773897043630,-500.0,0.00013698,2]
[408569890,1773897043639,-500.0,0.00013698,2]
[408569891,1773897043648,-500.0,0.00013698,2]
[408569892,1773897043657,-500.0,0.00013698,2]
[408569893,1773897043666,-500.0,0.00013698,2]
[408569894,1773897043676,-510.13276666,0.00013698,2]
[408569895,1773897043685,-500.0,0.00013698,2]
[408569896,1773897043695,-500.0,0.00013698,2]
[408569897,1773897043707,-504.39062474,0.00013698,2]
[408569898,1773897043716,-500.0,0.00013698,2]
[408569899,1773897043726,-500.0,0.00013698,2]
[408569900,1773897043736,-500.0,0.00013698,2]
[408569901,1773897043745,-500.0,0.00013698,2]
[408569902,1773897043755,-500.0,0.00013698,2]
[408569903,1773897043765,-500.0,0.00013698,2]
[408569904,1773897043776,-500.0,0.00013698,2]
[408569905,1773897043788,-500.0,0.00013698,2]
[408569906,1773897043798,-500.0,0.00013698,2]
[408569907,1773897043810,-500.0,0.00013698,2]
[408569908,1773897043819,-500.0,0.00013698,2]
[408569909,1773897043830,-500.0,0.00013698,2]
[408569910,1773897043840,-500.0,0.00013698,2]
[408569911,1773897043849,-500.0,0.00013698,2]
[408569912,1773897043858,-500.0,0.00013698,2]
[408569913,1773897043869,-500.0,0.00013698,2]
[408569914,1773897043881,-500.0,0.00013698,2]
[408569915,1773897043891,-500.0,0.00013698,2]
[408569916,1773897043901,-500.0,0.00013698,2]
[408569917,1773897043912,-500.0,0.00013698,2]
[408569918,1773897043923,-300.39352104,0.00013698,2]
[408569919,1773897043933,-500.0,0.00013698,2]
[408569920,1773897043945,-500.0,0.00013698,2]
[408569921,1773897043957,-500.0,0.00013698,2]
[408569922,1773897043968,-500.0,0.00013698,2]
[408569923,1773897043978,-500.0,0.00013698,2]
[408569924,1773897043987,-500.0,0.00013698,2]
[408569925,1773897043997,-500.0,0.00013698,2]
[408569926,1773897044007,-500.0,0.00013698,2]
[408569927,1773897044016,-533.72483612,0.00013698,2]
[408569928,1773897044030,-500.0,0.00013698,2]
[408569929,1773897044040,-500.0,0.00013698,2]
[408569930,1773897044050,-500.0,0.00013698,2]
[408569931,1773897044059,-500.0,0.00013698,2]
[408569932,1773897044068,-500.0,0.00013698,2]
[408569933,1773897044078,-530.20751779,0.00013698,2]
[408569934,1773897044088,-500.0,0.00013698,2]
[408569935,1773897044098,-500.0,0.00013698,2]
[408569936,1773897044108,-500.0,0.00013698,2]
[408569937,1773897044118,-500.0,0.00013698,2]
[408569938,1773897044127,-500.0,0.00013698,2]
[408569939,1773897044137,-500.0,0.00013698,2]
[408569940,1773897044146,-338.47316987,0.00013698,2]
[408569941,1773897044155,-500.0,0.00013698,2]
[408569942,1773897044165,-546.27391006,0.00013698,2]
[408569943,1773897044175,-500.0,0.00013698,2]
[408569944,1773897044184,-500.0,0.00013698,2]
[408569945,1773897044193,-500.0,0.00013698,2]
[408569946,1773897044203,-500.0,0.00013698,2]
[408569947,1773897044212,-276.35546666,0.00013698,2]
[408569948,1773897044222,-500.0,0.00013698,2]
[408569949,1773897044231,-500.0,0.00013698,2]
[408569950,1773897044240,-500.0,0.00013698,2]
[408569951,1773897044250,-404.05309335,0.00013698,2]
[408569952,1773897044259,-500.0,0.00013698,2]
[408569953,1773897044269,-500.0,0.00013698,2]
[408569954,1773897044278,-500.0,0.00013698,2]
[408569955,1773897044288,-500.0,0.00013698,2]
[408569956,1773897044297,-502.28440551,0.00013698,2]
[408569957,1773897044306,-500.0,0.00013698,2]
[408569958,1773897044316,-500.0,0.00013698,2]
[408569959,1773897044326,-500.0,0.00013698,2]
[408569960,1773897044335,-500.0,0.00013698,2]
[408569961,1773897044344,-500.79338971,0.00013698,2]
[408569962,1773897044354,-500.0,0.00013698,2]
[408569963,1773897044363,-500.0,0.00013698,2]
[408569964,1773897044372,-500.0,0.00013698,2]
[408569965,1773897044382,-507.21704968,0.00013698,2]
[408569966,1773897044391,-500.0,0.00013698,2]
[408569967,1773897044400,-500.0,0.00013698,2]
[408569968,1773897044410,-500.0,0.00013698,2]
[408569969,1773897044419,-500.0,0.00013698,2]
[408569970,1773897044427,-500.0,0.00013698,2]
[408569971,1773897044437,-500.0,0.00013698,2]
[408569972,1773897044446,-500.0,0.00013698,2]